bitfinex/quotes_SOLUSD_20240809
["timestamp","ask_amount","ask_price","bid_price","bid_amount"]
[1723168060294,33.37,160.78,160.74,0.829037]
[1723168061274,6.22,160.77,160.74,0.829037]
[1723168061813,6.2205,160.76,160.74,0.829037]
[1723168063085,6.2208,160.75,160.74,0.829037]
[1723168065302,26.2208,160.75,160.74,0.829037]
[1723168065486,20.0,160.75,160.74,0.829037]
[1723168065688,39.5905,160.76,160.74,0.829037]
[1723168065873,6.2208,160.75,160.74,0.829037]
[1723168066075,7.77615552,160.75,160.74,0.829037]
[1723168066279,26.2208,160.75,160.74,0.829037]
[1723168069303,20.0,160.75,160.74,0.829037]
[1723168069478,55.2157,160.78,160.74,0.829037]
[1723168069687,22.01826067,160.83,160.74,0.829037]
[1723168069688,33.37,160.8,160.74,0.829037]
[1723168069905,33.37,160.8,160.75,0.72333789]
[1723168070079,48.5029,160.82,160.75,0.72330904]
[1723168070409,15.5414,160.87,160.74,45.829037]
[1723168070410,33.37,160.8,160.74,45.829037]
[1723168070586,6.2196,160.79,160.74,45.829037]
[1723168071110,33.37,160.8,160.74,7.050037]
[1723168071410,39.5889,160.8,160.75,45.0]
[1723168071606,6.2192,160.79,160.75,45.0]
[1723168071775,6.2197,160.78,160.74,0.829037]
[1723168071980,6.2197,160.78,160.74,45.829037]
[1723168072180,6.2193,160.79,160.74,7.050137]
[1723168072414,33.37,160.8,160.74,0.829037]
[1723168072582,33.37,160.8,160.74,45.829037]
[1723168072902,6.22,160.77,160.74,0.829037]
[1723168073811,6.2197,160.78,160.74,0.829037]
[1723168074194,6.2201,160.77,160.74,0.829037]
[1723168074396,39.5904,160.76,160.74,0.829037]
[1723168074724,6.2208,160.75,160.74,0.829037]
[1723168075582,39.5905,160.76,160.74,0.829037]
[1723168075794,26.05,160.76,160.74,0.829037]
[1723168076492,32.2706,160.76,160.74,0.829037]
[1723168077207,26.05,160.76,160.74,0.829037]
[1723168078983,1.55509765,160.82,160.74,0.829037]
[1723168079184,26.05,160.8,160.74,16.381937]
[1723168079399,6.2197,160.78,160.74,16.381937]
[1723168079603,26.05,160.76,160.74,0.829037]
[1723168079811,6.2208,160.75,160.74,0.829037]
[1723168080208,32.2704,160.76,160.74,0.829037]
[1723168080409,26.05,160.76,160.74,0.829037]
[1723168082921,26.05,160.78,160.74,0.829037]
[1723168083422,16.3475,160.83,160.74,0.829037]
[1723168083423,26.05,160.76,160.74,0.829037]
[1723168083621,6.2208,160.75,160.74,0.829037]
[1723168084718,26.05,160.76,160.74,0.829037]
[1723168087615,6.2208,160.75,160.74,0.829037]
[1723168088299,32.2705,160.76,160.74,0.829037]
[1723168090005,6.2208,160.75,160.74,0.829037]
[1723168090187,26.2208,160.75,160.74,0.829037]
[1723168092111,26.05,160.78,160.74,0.829037]
[1723168092320,20.0,160.77,160.74,0.829037]
[1723168092890,6.47713642,160.82,160.74,0.829037]
[1723168093098,26.05,160.79,160.74,0.829037]
[1723168093595,26.05,160.79,160.74,16.381137]
[1723168094428,26.05,160.79,160.74,0.829037]
[1723168094721,32.2708,160.75,160.74,0.829037]
[1723168097706,52.2708,160.75,160.74,0.829037]
[1723168101023,46.05,160.75,160.74,0.829037]
[1723168101412,26.05,160.77,160.74,0.829037]
[1723168102012,6.2197,160.78,160.74,0.829037]
[1723168102013,32.2708,160.75,160.74,0.829037]
[1723168102937,26.05,160.75,160.74,0.829037]
[1723168103319,26.05,160.77,160.74,0.829037]
[1723168103518,26.05,160.79,160.75,0.72398599]
[1723168104138,26.05,160.79,160.74,0.829037]
[1723168104320,26.05,160.79,160.75,6.2208]
[1723168105035,26.05,160.79,160.76,6.2204]
[1723168105211,26.05,160.79,160.74,22.601937]
[1723168105543,26.05,160.79,160.75,45.0]
[1723168106217,26.05,160.81,160.75,45.72332951]
[1723168106413,6.47574568,160.82,160.75,45.72332951]
[1723168106604,6.47574568,160.82,160.77,26.05]
[1723168106811,26.05,160.85,160.78,45.0]
[1723168107116,32.2662,160.87,160.79,26.05]
[1723168107308,26.05,160.86,160.81,15.5461]
[1723168107830,32.2669,160.85,160.8,51.2188]
[1723168108251,26.05,160.85,160.78,15.5491]
[1723168108529,32.2677,160.83,160.78,15.5491]
[1723168108736,48.21419112,160.88,160.79,6.2192]
[1723168108737,32.2673,160.84,160.79,6.2192]
[1723168109231,32.2673,160.84,160.78,21.7687]
[1723168109735,26.05,160.84,160.79,6.2192]
[1723168110046,26.05,160.84,160.8,6.2188]
[1723168110813,6.2197,160.78,160.74,16.381337]
[1723168111016,6.2193,160.79,160.74,16.381337]
[1723168111215,6.217,160.85,160.79,6.2189]
[1723168111422,26.05,160.85,160.79,6.2189]
[1723168111914,6.2173,160.84,160.78,6.2196]
[1723168112111,32.2678,160.83,160.77,21.7694]
[1723168112335,26.05,160.83,160.78,6.2196]
[1723168112538,26.05,160.83,160.79,6.2192]
[1723168113135,22.16419112,160.88,160.8,26.05]
[1723168113441,22.16419112,160.88,160.83,6.2176]
[1723168113442,48.21419112,160.88,160.83,6.2176]
[1723168114335,26.05,160.86,160.8,26.05]
[1723168114537,6.2181,160.82,160.77,6.22]
[1723168114719,6.2181,160.82,160.76,32.2704]
[1723168114911,26.05,160.84,160.76,26.05]
[1723168115643,32.2683,160.82,160.76,6.2201]
[1723168115938,26.05,160.82,160.77,6.2198]
[1723168116937,32.2681,160.82,160.77,6.2198]
[1723168117130,26.05,160.82,160.77,6.2198]
[1723168117452,26.05,160.82,160.77,6.22]
[1723168118949,32.2681,160.82,160.77,6.22]
[1723168119321,26.05,160.82,160.78,45.0]
[1723168119648,26.05,160.82,160.78,51.2196]
[1723168121444,1.55458479,160.81,160.74,26.879037]
[1723168121651,6.2192,160.8,160.74,26.879037]
[1723168121849,19.40500869,160.79,160.74,0.829037]
[1723168122143,17.85,160.81,160.78,6.2193]
[1723168122343,15.6897,160.88,160.79,33.3973]
[1723168122543,6.46833311,160.87,160.82,6.218]
[1723168122747,17.85,160.84,160.81,6.2184]
[1723168123158,6.2166,160.86,160.81,6.2184]
[1723168123159,17.85,160.85,160.81,6.2184]
[1723168123355,17.85,160.84,160.79,21.7662]
[1723168123559,17.85,160.84,160.8,6.2187]
[1723168124224,17.85,160.84,160.79,15.5473]
[1723168124435,17.85,160.82,160.77,6.2198]
[1723168124758,17.85,160.82,160.78,45.0]
[1723168125125,17.85,160.82,160.78,51.2195]
[1723168125325,6.2181,160.83,160.78,6.2195]
[1723168125326,17.85,160.81,160.78,6.2195]
[1723168125749,17.85,160.82,160.78,6.2195]
[1723168127346,17.85,160.82,160.79,6.2191]
[1723168130759,17.85,160.8,160.76,15.551]
[1723168130941,17.85,160.78,160.76,15.551]
[1723168134844,17.85,160.78,160.74,0.829037]
[1723168135164,19.40519096,160.77,160.74,0.829037]
[1723168135460,17.85,160.77,160.74,0.829037]
[1723168135664,19.40526833,160.77,160.74,0.829037]
[1723168136052,17.85,160.78,160.74,7.050037]
[1723168136239,6.2194,160.79,160.74,7.050037]
[1723168136240,17.85,160.77,160.74,7.050037]
[1723168137071,19.40522656,160.77,160.74,0.829037]
[1723168137365,19.40527681,160.76,160.74,0.829037]
[1723168137941,17.85,160.75,160.74,0.829037]
[1723168141239,17.85,160.76,160.74,0.829037]
[1723168141865,6.2193,160.79,160.74,0.829037]
[1723168142082,17.85,160.76,160.74,0.829037]
[1723168143042,17.85,160.76,160.74,7.050137]
[1723168143869,17.85,160.75,160.74,0.829037]
[1723168144081,17.85,160.76,160.74,0.829037]
[1723168144655,17.85,160.75,160.74,0.829037]
[1723168145065,17.85,160.76,160.74,0.829037]
[1723168145477,6.2202,160.77,160.74,0.829037]
[1723168145478,17.85,160.75,160.74,0.829037]
[1723168146073,24.0708,160.75,160.74,0.829037]
[1723168146250,44.0708,160.75,160.74,0.829037]
[1723168147151,44.0708,160.75,160.63,15.5628]
[1723168147152,109.25,160.75,160.63,15.5628]
[1723168147372,17.85,160.67,160.64,6.225]
[1723168147556,71.4,160.72,160.63,21.7882]
[1723168147557,17.85,160.66,160.63,21.7882]
[1723168147763,17.85,160.66,160.64,6.225]
[1723168148085,17.85,160.67,160.64,6.225]
[1723168148553,6.2232,160.69,160.64,6.225]
[1723168148758,17.85,160.65,160.6,16.22238567]
[1723168149062,17.85,160.65,160.61,6.2258]
[1723168149375,17.85,160.66,160.63,6.2254]
[1723168150272,6.2236,160.68,160.62,15.5645]
[1723168150577,17.85,160.65,160.62,15.5645]
[1723168150753,17.85,160.65,160.63,6.2254]
[1723168150960,17.85,160.66,160.62,21.7903]
[1723168151162,17.85,160.66,160.63,6.2252]
[1723168151373,17.85,160.66,160.62,21.7902]
[1723168151582,17.85,160.65,160.62,21.7902]
[1723168151980,17.85,160.65,160.62,15.5645]
[1723168152562,17.85,160.64,160.62,15.5645]
[1723168152785,17.85,160.65,160.62,21.7903]
[1723168153373,6.2223,160.72,160.66,6.2242]
[1723168153574,17.85,160.67,160.65,15.5615]
[1723168153799,23.1863,160.74,160.62,17.85]
[1723168153959,17.85,160.73,160.71,6.2223]
[1723168154381,17.85,160.73,160.7,21.779]
[1723168154694,22.9237,160.78,160.7,15.5563]
[1723168154695,17.85,160.72,160.7,15.5563]
[1723168154992,17.85,160.71,160.68,6.2231]
[1723168155284,17.85,160.69,160.66,15.5601]
[1723168155584,17.85,160.69,160.67,6.2239]
[1723168155778,17.85,160.7,160.67,6.2239]
[1723168156157,17.85,160.71,160.68,6.2235]
[1723168156555,17.85,160.71,160.69,6.223]
[1723168156987,17.85,160.7,160.67,6.2238]
[1723168157285,17.85,160.71,160.68,6.2235]
[1723168157660,17.85,160.71,160.67,6.2238]
[1723168157860,17.85,160.7,160.67,6.2238]
[1723168158067,17.85,160.71,160.68,6.2232]
[1723168158266,17.85,160.72,160.69,6.2231]
[1723168158563,17.85,160.76,160.73,6.2213]
[1723168158767,17.85,160.76,160.72,15.5546]
[1723168158989,17.85,160.73,160.64,31.1237]
[1723168159184,17.85,160.71,160.68,15.558]
[1723168159361,17.85,160.71,160.69,6.223]
[1723168159691,17.85,160.73,160.7,6.2227]
[1723168159889,17.85,160.72,160.7,6.2227]
[1723168160086,17.85,160.71,160.68,15.558]
[1723168160290,17.85,160.72,160.68,15.558]
[1723168160667,17.85,160.72,160.7,6.2226]
[1723168160865,17.85,160.72,160.68,15.558]
[1723168161087,17.85,160.72,160.69,6.2228]
[1723168161362,17.85,160.73,160.7,6.2226]
[1723168161675,17.85,160.74,160.72,6.222]
[1723168162079,17.85,160.75,160.72,6.222]
[1723168162392,17.85,160.74,160.71,15.5559]
[1723168162781,17.85,160.74,160.71,21.778]
[1723168162966,17.85,160.73,160.71,21.778]
[1723168163165,29.40589873,160.78,160.71,21.778]
[1723168163166,6.2201,160.77,160.72,6.222]
[1723168163384,17.85,160.74,160.71,15.5559]
[1723168163595,17.85,160.73,160.71,15.5559]
[1723168163772,17.85,160.72,160.69,6.2231]
[1723168164108,17.85,160.71,160.7,6.2227]
[1723168164266,6.2203,160.77,160.71,6.2223]
[1723168164467,17.85,160.73,160.71,6.2223]
[1723168165082,6.2203,160.77,160.72,6.2218]
[1723168165394,17.85,160.74,160.72,6.2218]
[1723168165564,17.85,160.74,160.71,6.2223]
[1723168165764,17.85,160.73,160.7,15.5568]
[1723168165962,17.85,160.73,160.7,21.7795]
[1723168166472,17.85,160.73,160.71,6.2223]
[1723168166671,17.85,160.72,160.7,21.7795]
[1723168167094,17.85,160.71,160.7,15.5568]
[1723168167603,17.85,160.72,160.7,21.7794]
[1723168168398,17.85,160.71,160.67,15.5598]
[1723168168586,17.85,160.68,160.67,15.5598]
[1723168170281,17.85,160.68,160.66,6.2239]
[1723168170481,17.85,160.67,160.64,15.5626]
[1723168170705,17.85,160.67,160.65,6.2245]
[1723168170993,17.85,160.67,160.66,6.2243]
[1723168171200,6.48199138,160.74,160.66,17.85]
[1723168171375,15.3712,160.75,160.64,31.1241]
[1723168171376,17.85,160.7,160.67,0.72556441]
[1723168171578,17.85,160.7,160.68,21.7811]
[1723168171778,17.85,160.71,160.69,6.2231]
[1723168171979,17.85,160.71,160.7,6.2227]
[1723168172194,17.85,160.72,160.7,6.2227]
[1723168172400,17.85,160.72,160.71,21.7782]
[1723168172706,6.48229177,160.77,160.73,6.2215]
[1723168172875,17.85,160.75,160.73,6.2215]
[1723168173380,17.85,160.75,160.72,6.2219]
[1723168173990,17.85,160.74,160.72,6.2219]
[1723168174186,17.85,160.76,160.72,6.2219]
[1723168174498,17.85,160.73,160.67,6.2239]
[1723168174798,6.3404,160.78,160.65,17.85]
[1723168174799,17.85,160.7,160.65,17.85]
[1723168175797,17.85,160.69,160.64,64.5359]
[1723168176000,17.85,160.69,160.67,6.2236]
[1723168177283,17.85,160.69,160.68,6.2235]
[1723168177483,17.85,160.7,160.68,6.2235]
[1723168177777,26.06,160.71,160.68,6.2235]
[1723168178303,26.06,160.69,160.65,6.2245]
[1723168179406,26.06,160.69,160.66,6.2243]
[1723168179696,26.06,160.69,160.64,21.7869]
[1723168179900,26.06,160.69,160.64,15.5619]
[1723168180901,26.06,160.69,160.65,6.2243]
[1723168181207,26.06,160.68,160.65,6.2243]
[1723168183099,26.06,160.68,160.66,6.2242]
[1723168183684,26.06,160.68,160.65,6.2246]
[1723168184610,26.06,160.67,160.61,15.5654]
[1723168184784,26.06,160.66,160.61,15.5654]
[1723168184983,26.06,160.67,160.63,6.2251]
[1723168186012,26.06,160.66,160.63,6.2251]
[1723168186685,26.06,160.66,160.62,6.2258]
[1723168186887,26.06,160.65,160.62,6.2258]
[1723168187308,1.45184278,160.64,160.61,21.7916]
[1723168187484,27.51184278,160.64,160.61,21.7916]
[1723168187809,26.06,160.64,160.61,21.7916]
[1723168187977,26.06,160.63,160.6,9.99608567]
[1723168188178,27.61656269,160.63,160.6,9.99608567]
[1723168188413,26.06,160.63,160.6,9.99608567]
[1723168189581,26.06,160.62,160.6,9.99608567]
[1723168189814,26.06,160.64,160.6,9.99608567]
[1723168189983,26.06,160.63,160.6,9.99608567]
[1723168190185,26.06,160.61,160.6,9.99608567]
[1723168190482,32.2862,160.61,160.6,4.48924715]
[1723168190708,52.2862,160.61,160.6,4.48924715]
[1723168191311,16.6491,160.6,160.58,11.235287]
[1723168191490,46.06,160.59,160.58,11.235287]
[1723168193109,52.287,160.59,160.58,11.235287]
[1723168193807,46.06,160.59,160.54,10.40625]
[1723168195002,6.2278,160.57,160.54,10.40625]
[1723168195201,32.2885,160.55,160.54,10.40625]
[1723168195395,53.84598489,160.55,160.54,3.73463706]
[1723168196312,6.2292,160.54,160.52,10.40625]
[1723168196630,26.06,160.53,160.52,10.40625]
[1723168196927,41.8178,160.53,160.5,10.40625]
[1723168197227,6.2301,160.51,160.5,10.40625]
[1723168197389,26.06,160.51,160.5,10.40625]
[1723168198126,32.2901,160.51,160.5,10.40625]
[1723168198626,26.06,160.51,160.5,10.40625]
[1723168198915,32.2901,160.51,160.5,10.40625]
[1723168199802,26.06,160.51,160.5,10.40625]
[1723168200192,46.06,160.52,160.5,10.40625]
[1723168200397,26.06,160.54,160.51,6.23]
[1723168200620,26.06,160.52,160.5,10.40625]
[1723168200835,26.06,160.51,160.5,10.40625]
[1723168201116,32.2901,160.51,160.5,10.40625]
[1723168201326,6.47204847,160.56,160.5,10.40625]
[1723168201662,6.47204847,160.56,160.55,6.2285]
[1723168201793,6.47204847,160.56,160.52,6.2297]
[1723168201794,26.06,160.56,160.52,6.2297]
[1723168201999,26.06,160.53,160.5,10.40625]
[1723168202215,1.55735994,160.58,160.5,10.40625]
[1723168202216,26.06,160.52,160.5,10.40625]
[1723168202522,26.06,160.51,160.5,10.40625]
[1723168202699,15.5679,160.59,160.5,10.40625]
[1723168202895,26.06,160.54,160.5,10.40625]
[1723168203097,26.06,160.54,160.51,6.2301]
[1723168203314,26.06,160.53,160.5,10.40625]
[1723168203696,7.67962818,160.63,160.52,15.5741]
[1723168203892,26.06,160.57,160.54,6.2289]
[1723168204927,26.06,160.57,160.52,21.8034]
[1723168205214,26.06,160.53,160.5,10.40625]
[1723168205428,26.06,160.54,160.51,6.23]
[1723168205622,26.06,160.55,160.51,6.23]
[1723168205829,43.48408461,160.61,160.54,15.5723]
[1723168206017,26.06,160.59,160.54,15.5723]
[1723168206336,26.06,160.59,160.54,21.8012]
[1723168206536,6.2282,160.56,160.51,16.094]
[1723168206706,26.06,160.55,160.5,25.98205]
[1723168207025,26.06,160.56,160.5,25.98205]
[1723168207333,26.06,160.57,160.5,36.46625]
[1723168207509,26.06,160.57,160.54,6.2287]
[1723168207704,26.06,160.58,160.55,6.2285]
[1723168208029,26.06,160.59,160.56,6.2281]
[1723168208213,26.06,160.6,160.53,15.5731]
[1723168209416,32.2866,160.6,160.54,6.2289]
[1723168209732,6.2262,160.62,160.55,26.06]
[1723168210028,6.2263,160.61,160.55,26.06]
[1723168210233,6.2271,160.59,160.53,47.8624]
[1723168210403,32.2866,160.6,160.54,6.2288]
[1723168210606,26.06,160.6,160.55,6.2284]
[1723168211030,6.2271,160.59,160.53,47.8621]
[1723168211229,1.55691497,160.63,160.5,36.46625]
[1723168211230,6.2282,160.56,160.5,36.46625]
[1723168211444,32.2878,160.58,160.51,6.2301]
[1723168211602,32.2878,160.58,160.52,6.2296]
[1723168212003,26.06,160.58,160.53,6.229]
[1723168212237,26.06,160.61,160.53,26.06]
[1723168212437,26.06,160.61,160.54,26.06]
[1723168212612,26.06,160.61,160.56,6.2281]
[1723168212933,6.2262,160.62,160.55,15.5709]
[1723168212934,26.06,160.62,160.55,15.5709]
[1723168213124,26.06,160.6,160.56,6.2281]
[1723168213331,32.2872,160.59,160.54,22.8053]
[1723168213635,26.06,160.6,160.55,6.2284]
[1723168214527,32.2866,160.6,160.55,6.2284]
[1723168214731,1.55687627,160.63,160.5,68.62705]
[1723168215036,1.55687627,160.63,160.51,6.2301]
[1723168215037,32.2879,160.57,160.51,6.2301]
[1723168215239,32.2879,160.57,160.5,68.62705]
[1723168215240,32.2886,160.55,160.5,42.56705]
[1723168216735,26.06,160.57,160.5,68.62705]
[1723168216916,26.06,160.57,160.52,6.2294]
[1723168217111,32.2878,160.57,160.52,6.2294]
[1723168217513,26.06,160.57,160.52,6.2294]
[1723168217739,26.06,160.57,160.51,6.2301]
[1723168217915,26.06,160.57,160.5,68.62705]
[1723168218333,26.06,160.57,160.5,42.56705]
[1723168218536,6.2282,160.56,160.5,48.79745]
[1723168219417,32.2878,160.57,160.5,42.56705]
[1723168219615,26.06,160.57,160.52,6.2297]
[1723168220120,32.2878,160.57,160.51,6.2301]
[1723168221132,6.2283,160.56,160.51,6.2301]
[1723168221324,6.2286,160.55,160.5,42.56705]
[1723168221532,32.2886,160.55,160.5,42.56705]
[1723168221734,32.2886,160.55,160.5,48.79745]
[1723168221914,26.06,160.57,160.5,42.56705]
[1723168222115,26.06,160.57,160.53,15.5727]
[1723168222417,32.2863,160.61,160.55,6.2285]
[1723168222824,6.2266,160.6,160.55,6.2285]
[1723168223026,26.06,160.57,160.5,26.99135]
[1723168223236,26.06,160.57,160.51,6.2299]
[1723168223442,32.2878,160.57,160.52,6.2296]
[1723168223613,26.06,160.57,160.51,41.6343]
[1723168223814,32.2878,160.57,160.52,6.2297]
[1723168224222,26.06,160.57,160.53,6.2292]
[1723168225041,26.06,160.57,160.51,15.5743]
[1723168225438,6.2283,160.56,160.51,21.8042]
[1723168226520,26.06,160.57,160.51,15.5743]
[1723168226725,26.06,160.57,160.52,6.2297]
[1723168227946,32.2879,160.57,160.52,6.2297]
[1723168228440,32.2868,160.6,160.55,6.2285]
[1723168228621,32.2868,160.6,160.54,15.5721]
[1723168228622,26.06,160.6,160.54,15.5721]
[1723168228935,6.47105596,160.62,160.5,26.99135]
[1723168228936,6.2281,160.57,160.51,21.8053]
[1723168229132,26.06,160.56,160.5,26.99135]
[1723168229337,26.06,160.56,160.5,10.40625]
[1723168229643,6.2286,160.55,160.5,10.40625]
[1723168230944,26.06,160.58,160.5,25.98245]
[1723168231145,26.06,160.58,160.53,6.2291]
[1723168231520,26.06,160.59,160.51,26.06]
[1723168231727,6.2271,160.59,160.53,6.2291]
[1723168232030,26.06,160.58,160.5,36.46625]
[1723168232348,26.06,160.58,160.51,60.5752]
[1723168232523,6.2278,160.57,160.52,6.2297]
[1723168232925,26.06,160.56,160.51,15.5752]
[1723168233127,32.2882,160.56,160.51,15.5752]
[1723168234035,32.2882,160.56,160.51,21.8051]
[1723168234348,26.06,160.56,160.51,21.8051]
[1723168234552,26.06,160.58,160.51,15.5752]
[1723168234715,26.06,160.58,160.53,6.2293]
[1723168234917,32.2875,160.58,160.52,6.2297]
[1723168236250,26.06,160.58,160.51,15.5752]
[1723168236443,26.06,160.58,160.54,15.5723]
[1723168236649,26.06,160.61,160.57,15.5692]
[1723168236948,22.5734,160.66,160.57,15.5692]
[1723168236949,26.06,160.63,160.57,15.5692]
[1723168237123,26.06,160.61,160.57,15.5692]
[1723168238056,32.2863,160.61,160.57,15.5692]
[1723168238353,26.06,160.6,160.57,15.5692]
[1723168238731,26.06,160.6,160.55,6.2285]
[1723168239650,26.06,160.6,160.56,6.2281]
[1723168239849,6.2263,160.61,160.54,32.1833]
[1723168239850,32.2859,160.62,160.57,6.2277]
[1723168240354,26.06,160.62,160.58,6.2272]
[1723168241049,26.06,160.63,160.59,6.227]
[1723168241449,32.2855,160.63,160.58,6.2274]
[1723168241736,32.2855,160.63,160.57,15.5693]
[1723168241737,6.2259,160.62,160.57,21.7971]
[1723168241955,26.06,160.6,160.54,32.1831]
[1723168242321,32.2869,160.6,160.55,6.2285]
[1723168242859,6.2271,160.59,160.54,15.5722]
[1723168243159,26.06,160.57,160.53,6.2293]
[1723168243648,32.2875,160.58,160.51,15.5751]
[1723168243826,32.2875,160.58,160.51,41.6351]
[1723168244031,26.06,160.58,160.51,41.6351]
[1723168244934,26.06,160.58,160.54,6.2289]
[1723168245246,26.06,160.6,160.56,6.2281]
[1723168245844,32.2867,160.6,160.54,6.2286]
[1723168246039,32.2867,160.6,160.55,6.2284]
[1723168246533,26.06,160.62,160.55,26.06]
[1723168246855,26.06,160.62,160.57,21.796]
[1723168247236,26.06,160.61,160.52,31.1478]
[1723168247439,32.2867,160.6,160.55,6.2285]
[1723168248038,26.06,160.6,160.56,6.2281]
[1723168248240,26.06,160.61,160.55,15.5707]
[1723168248638,32.2866,160.61,160.55,21.7989]
[1723168248854,32.2866,160.61,160.56,6.2281]
[1723168249434,7.7834137,160.6,160.55,21.7992]
[1723168250135,6.2266,160.6,160.55,21.7992]
[1723168250829,1.55687276,160.65,160.55,15.5707]
[1723168251025,26.06,160.64,160.57,15.5687]
[1723168251231,20.0,160.63,160.57,15.5687]
[1723168251455,26.2256,160.63,160.57,15.5687]
[1723168251761,33.84257162,160.62,160.57,21.7964]
[1723168252263,32.2859,160.62,160.57,21.7964]
[1723168256858,1.5566677,160.61,160.57,15.5687]
[1723168257868,29.05415253,160.66,160.6,6.2266]
[1723168257869,17.89,160.63,160.6,6.2266]
[1723168258036,22.5734,160.66,160.6,33.4566]
[1723168258359,22.5734,160.66,160.49,16.71625]
[1723168258360,17.89,160.61,160.53,15.5725]
[1723168258563,6.2271,160.59,160.54,6.2286]
[1723168258859,6.2267,160.6,160.55,6.2284]
[1723168259040,6.2262,160.62,160.56,6.228]
[1723168259235,6.2262,160.62,160.57,6.2278]
[1723168259438,17.89,160.6,160.56,24.1181]
[1723168259761,26.09,160.61,160.56,6.2281]
[1723168260062,6.2267,160.6,160.55,21.799]
[1723168260461,32.3162,160.61,160.56,6.2281]
[1723168260634,26.09,160.62,160.55,41.6606]
[1723168260836,27.64669882,160.61,160.55,15.5706]
[1723168261151,15.5626,160.65,160.55,15.5706]
[1723168261152,32.3159,160.62,160.57,6.2277]
[1723168261557,26.09,160.62,160.57,6.2277]
[1723168261753,22.5734,160.66,160.58,15.568]
[1723168261754,6.2251,160.64,160.58,15.568]
[1723168262060,26.09,160.59,160.51,15.5752]
[1723168262258,32.3181,160.57,160.51,15.5752]
[1723168262465,32.3186,160.55,160.51,15.5752]
[1723168262635,32.3191,160.54,160.5,10.40625]
[1723168262831,26.09,160.54,160.5,10.40625]
[1723168263044,6.2294,160.53,160.5,10.40625]
[1723168263244,33.87698002,160.53,160.5,10.40625]
[1723168264165,27.64758002,160.53,160.5,10.40625]
[1723168264359,26.09,160.51,160.5,10.40625]
[1723168264663,32.3201,160.51,160.5,10.40625]
[1723168265164,26.09,160.53,160.5,10.40625]
[1723168265462,6.2289,160.55,160.51,6.2301]
[1723168265463,26.09,160.55,160.51,6.2301]
[1723168265668,26.09,160.55,160.5,25.98245]
[1723168266446,32.3187,160.55,160.5,32.21295]
[1723168266769,26.09,160.54,160.5,32.21295]
[1723168268462,26.09,160.52,160.5,10.40625]
[1723168268649,26.09,160.51,160.5,10.40625]
[1723168270346,32.3201,160.51,160.5,10.40625]
[1723168271072,48.7202,160.51,160.5,10.40625]
[1723168271564,68.7202,160.51,160.5,10.40625]
[1723168271767,75.0922,160.51,160.5,10.40625]
[1723168272182,48.8621,160.51,160.49,5.24153537]
[1723168272467,6.2316,160.47,160.46,1.25325614]
[1723168272670,6.2324,160.46,160.44,10.40625]
[1723168272881,26.09,160.47,160.44,10.40625]
[1723168273075,32.3214,160.48,160.44,10.40625]